[Event "Mitropa Cup Women 2024"]
[Site "Apolda"]
[Date "2024.02.18"]
[Round "4.12"]
[White "Fizerova, Lucie"]
[Black "Deak-Sala, Emilia"]
[Result "0-1"]
[ECO "B31"]
[WhiteElo "1794"]
[BlackElo "1843"]
[Annotator "NA RC"]
[PlyCount "92"]
[EventDate "2024.02.15"]
[EventType "team-tourn"]
[EventCountry "GER"]
[SourceTitle "playchess.com"]
[Source "ChessBase"]
[SourceQuality "1"]
[WhiteTeam "Czech Republic"]
[BlackTeam "Austria"]
[WhiteTeamCountry "CZE"]
[BlackTeamCountry "AUT"]
[TimeControl "40/5400+30:1800+30"]

1. e4 {[%emt 0:00:05]} c5 {[%emt 0:00:04]} 2. Nf3 {[%emt 0:00:12]} Nc6 {[%emt 0:00:05]} 3. Bb5 {[%emt 0:00:15]} g6 {[%emt 0:00:25]} 4. O-O {[%emt 0:00:17]} Bg7 {[%emt 0:00:23]} 5. Re1 {[%emt 0:00:24]} Nf6 {[%emt 0:00:39]} 6. e5 {[%emt 0:00:15]} Nd5 {[%emt 0:00:06]} 7. Nc3 {[%emt 0:00:11]} Nc7 {[%emt 0:00:42]} 8. Bxc6 {[%emt 0:00:17]} dxc6 {[%emt 0:05:25]} 9. h3 {[%emt 0:00:16]} O-O {[%emt 0:02:25]} 10. d3 {[%emt 0:00:19]} h6 {[%emt 0:06:33]} 11. Be3 {[%emt 0:01:27]} Ne6 {[%emt 0:01:02]} 12. Ne4 {[%emt 0:03:58]} b6 {[%emt 0:04:41]} 13. Qd2 {[%emt 0:02:57]} Kh7 {[%emt 0:01:30]} 14. a4 {[%emt 0:04:37]} f5 {[%emt 0:05:22]} 15. exf6 {[%emt 0:03:57]} exf6 {[%emt 0:00:10]} 16. Nc3 {[%emt 0:06:41]} Nd4 {[%emt 0:13:45]} 17. Bxd4 {[%emt 0:03:44]} cxd4 {[%emt 0:00:05]} 18. Ne2 {[%emt 0:02:36]} c5 {[%emt 0:00:56]} 19. Nf4 {[%emt 0:00:53]} Qd6 {[%emt 0:06:49]} 20. Re2 {[%emt 0:05:08]} Bd7 {[%emt 0:04:03]} 21. Rae1 {[%emt 0:12:14]} Rae8 {[%emt 0:04:22]} 22. b3 {[%emt 0:03:39]} Rxe2 {[%emt 0:09:21]} 23. Nxe2 {[%emt 0:03:06]} Qc6 {[%emt 0:09:55]} 24. Qf4 {[%emt 0:05:14]} g5 {[%emt 0:11:06]} 25. Qg3 {[%emt 0:08:53]} Re8 {[%emt 0:00:45]} 26. Nd2 {[%emt 0:07:10]} f5 {[%emt 0:03:28]} 27. Qf3 {[%emt 0:05:27]} Qg6 {[%emt 0:00:56]} 28. g4 {[%emt 0:07:46]} fxg4 {[%emt 0:03:25]} 29. hxg4 {[%emt 0:00:12]} Bc6 {[%emt 0:01:21]} 30. Qf5 {[%emt 0:01:40]} Qxf5 {[%emt 0:00:10]} 31. gxf5 {[%emt 0:00:01]} Bd7 {[%emt 0:00:09]} 32. Ne4 {[%emt 0:01:25]} Bxf5 {[%emt 0:02:08]} 33. N2g3 {[%emt 0:01:19]} Bd7 {[%emt 0:00:28]} 34. Ra1 {[%emt 0:02:25]} a5 {[%emt 0:00:34]} 35. Kg2 {[%emt 0:01:25]} Kg6 {[%emt 0:00:38]} 36. Rh1 {[%emt 0:01:02]} Be5 {[%emt 0:01:35]} 37. f3 {[%emt 0:03:55]} Bf4 {[%emt 0:02:26]} 38. Nh5 {[%emt 0:00:35]} Be5 {[%emt 0:00:11]} 39. Kf2 {[%emt 0:00:51]} Rf8 {[%emt 0:00:34]} 40. Kg2 {[%emt 0:00:14]} g4 {[%emt 0:00:57]} 41. f4 {[%emt 0:07:05]} Bxf4 {[%emt 0:04:32]} 42. Nxf4+ {[%emt 0:01:33]} Rxf4 {[%emt 0:00:22]} 43. Kg3 {[%emt 0:02:00]} Rf3+ {[%emt 0:01:03]} 44. Kh4 {[%emt 0:00:14]} Kf5 {[%emt 0:04:48]} 45. Rh2 {[%emt 0:06:10]} Kf4 {[%emt 0:01:38]} 46. Nf6 {[%emt 0:00:52]} Rh3+ {[%emt 0:00:19]} 0-1

[Event "Mitropa Cup Women 2024"]
[Site "Apolda"]
[Date "2024.02.18"]
[Round "4.13"]
[White "Hakimifard, Ghazal"]
[Black "Urh, Zala"]
[Result "0-1"]
[ECO "B11"]
[WhiteElo "2243"]
[BlackElo "2290"]
[Annotator "RC"]
[PlyCount "56"]
[EventDate "2024.02.15"]
[EventType "team-tourn"]
[EventCountry "GER"]
[SourceTitle "playchess.com"]
[Source "ChessBase"]
[SourceQuality "1"]
[WhiteTeam "Switzerland"]
[BlackTeam "Slovenia"]
[WhiteTeamCountry "SUI"]
[BlackTeamCountry "SLO"]
[TimeControl "40/5400+30:1800+30"]

1. e4 {[%emt 0:00:05]} c6 {[%emt 0:00:04]} 2. Nc3 {[%emt 0:00:08]} d5 {[%emt 0:00:29]} 3. Nf3 {[%emt 0:00:05]} dxe4 {[%emt 0:00:50]} 4. Nxe4 {[%emt 0:00:02]} Nf6 {[%emt 0:01:57]} 5. Qe2 {[%emt 0:00:10]} Nxe4 {[%emt 0:00:43]} 6. Qxe4 {[%emt 0:00:01]} Nd7 {[%emt 0:00:05]} 7. Bc4 {[%emt 0:00:14]} Nf6 {[%emt 0:00:06]} 8. Ne5 {[%emt 0:00:14]} e6 {[%emt 0:00:07]} 9. Qe2 {[%emt 0:00:04]} b5 {[%emt 0:01:59]} 10. Bd3 {[%emt 0:00:07]} Qc7 {[%emt 0:02:57]} 11. a4 {[%emt 0:00:49]} Bd6 {[%emt 0:01:34]} 12. Nxc6 {[%emt 0:00:53]} b4 {[%emt 0:00:09]} 13. Nd4 {[%emt 0:05:11]} a6 {[%emt 0:00:15]} 14. b3 {[%emt 0:09:22]} Bb7 {[%emt 0:10:08]} 15. Bb2 {[%emt 0:08:20]} Nd5 {[%emt 0:24:03]} 16. Be4 {[%emt 0:07:34]} O-O {[%emt 0:08:03]} 17. O-O-O {[%emt 0:19:56]} Nf4 {[%emt 0:07:00]} 18. Qf3 {[%emt 0:01:47]} Bxe4 {[%emt 0:03:24]} 19. Qxe4 {[%emt 0:00:02]} f5 {[%emt 0:00:07]} 20. Qf3 {[%emt 0:19:53]} e5 {[%emt 0:22:55]} 21. Nxf5 {[%emt 0:13:32]} e4 {[%emt 0:00:04]} 22. Qg4 {[%emt 0:00:26]} Be5 {[%emt 0:00:41]} 23. Bd4 {[%emt 0:07:37]} Rac8 {[%emt 0:11:31]} 24. c4 {[%emt 0:04:39]} Bxd4 {[%emt 0:00:35]} 25. Nxd4 {[%emt 0:01:49]} Qe5 {[%emt 0:00:11]} 26. g3 {[%emt 0:00:00]} Nd3+ {[%emt 0:00:15]} 27. Kc2 {[%emt 0:00:00]} Qxd4 {[%emt 0:00:06]} 28. Qe6+ {[%emt 0:00:00]} Kh8 {[%emt 0:00:04]} 0-1

[Event "Mitropa Cup Women 2024"]
[Site "Apolda"]
[Date "2024.02.18"]
[Round "4.14"]
[White "Shpanko, Nadiia"]
[Black "Georgescu, Lena"]
[Result "1/2-1/2"]
[ECO "C79"]
[WhiteElo "2179"]
[BlackElo "2268"]
[Annotator "TA"]
[PlyCount "74"]
[EventDate "2024.02.15"]
[EventType "team-tourn"]
[EventCountry "GER"]
[SourceTitle "playchess.com"]
[Source "ChessBase"]
[SourceQuality "1"]
[WhiteTeam "Slovenia"]
[BlackTeam "Switzerland"]
[WhiteTeamCountry "SLO"]
[BlackTeamCountry "SUI"]
[TimeControl "40/5400+30:1800+30"]

{[%evp 9,74,26,47,3,38,29,35,37,33,20,31,1,11,10,7,0,9,0,0,0,0,0,0,0,0,0,0,0,0,0,4,4,6,15,9,10,10,3,1,1,1,4,5,-411,-379,-404,-368,-906,-539,-910,-197,-197,0,-403,0,0,0,0,0,0,0,0,0,0,0,0,0]} 1. e4 {[%emt 0:00:03]} e5 {[%emt 0:00:03]} 2. Nf3 {[%emt 0:00:12]} Nc6 {[%emt 0:00:03]} 3. Bb5 {[%emt 0:00:13]} a6 {[%emt 0:00:04]} 4. Ba4 {[%emt 0:00:09]} Nf6 {[%emt 0:00:05]} 5. O-O {[%emt 0:00:19]} d6 {[%emt 0:00:04][%cal Of8e7]} 6. h3 {[%emt 0:05:45]} Bd7 {[%emt 0:03:20]} (6... b5 $5 7. Bb3 $8 Na5 $11) 7. Re1 {[%emt 0:02:59]} g6 {[%emt 0:04:03]} 8. c3 {[%emt 0:07:38] Weiß steht etwas besser.} Bg7 {[%emt 0:00:38]} 9. d4 {[%emt 0:03:03]} O-O {[%emt 0:01:17]} 10. dxe5 {[%emt 0:05:31]} Nxe5 {[%emt 0:02:39]} 11. Nxe5 {[%emt 0:00:21]} dxe5 {[%emt 0:02:41]} 12. Bxd7 {[%emt 0:02:43]} Qxd7 {[%emt 0:02:27]} 13. Qxd7 {[%emt 0:00:55]} Nxd7 {[%emt 0:00:06]} 14. Be3 {[%emt 0:00:37] Es drohte Nc5} Rfd8 {[%emt 0:05:02]} 15. Na3 {[%emt 0:06:12]} Bf8 {[%emt 0:22:24]} 16. Nc4 {[%emt 0:01:51]} a5 {[%emt 0:09:36]} 17. a4 {[%emt 0:00:50]} f6 {[%emt 0:04:52]} 18. Red1 {[%emt 0:06:31]} b6 {[%emt 0:13:00]} 19. Rd2 {[%emt 0:02:40] Zielt auf Rad1 ab.} Kf7 {[%emt 0:02:28]} 20. Rad1 {[%emt 0:00:57]} Ke8 {[%emt 0:00:13]} 21. Kf1 {[%emt 0:09:01]} Nc5 {[%emt 0:02:09]} 22. Rxd8+ {[%emt 0:00:43]} Rxd8 {[%emt 0:00:06]} 23. Rxd8+ {[%emt 0:00:02]} Kxd8 {[%emt 0:00:04]} 24. Bxc5 {[%emt 0:00:04]} Bxc5 $11 {[%emt 0:00:11][%mdl 4096] Endspiel. KB-KN} 25. Ke2 {[%emt 0:00:09]} Kd7 {[%emt 0:01:04]} 26. Ne3 $2 {[%emt 0:00:12][%mdl 8192]} (26. b3 $11 {und Weiss ist OK.}) 26... Bxe3 $19 {[%emt 0:00:35]} 27. Kxe3 {[%emt 0:00:05] [#] KP-KP} Kc6 $1 {[%emt 0:01:43]} 28. g4 $2 {[%emt 0:04:01]} (28. h4 b5 29. axb5+ Kxb5 30. f4 exf4+ 31. Kxf4) 28... g5 {[%emt 0:04:03]} 29. Kd3 {[%emt 0:14:19] Droht stark Kc4.} Kc5 {[%emt 0:00:32]} (29... b5 30. axb5+ Kxb5) 30. Kc2 {[%emt 0:01:00] [#]} Kc4 $2 {[%emt 0:03:25]} ({Besser ist} 30... b5 $1 $19 {[%cal Rb5a4]} 31. Kb3 bxa4+ 32. Kxa4 Kc4 (32... Kb6 33. b3 $11)) 31. b3+ $11 {[%emt 0:02:06]} Kc5 {[%emt 0:00:05][%cal Bc4c5,Bc5b5,Bb5b6,Bb6a6][%mdl 32] ...b5 wäre nun fies.} 32. Kb2 $1 {[%emt 0:25:19] Die Stellung ist ausgeglichen.} b5 {[%emt 0:05:18]} 33. axb5 {[%emt 0:00:00]} Kxb5 {[%emt 0:12:40] Weiss muss nun ...a4 beachten.} 34. Ka3 {[%emt 0:00:00]} c5 {[%emt 0:00:00]} 35. c4+ {[%emt 0:00:00]} Kb6 {[%emt 0:00:00]} 36. f3 {[%emt 0:00:00]} Ka6 {[%emt 0:00:00]} 37. Ka4 {[%emt 0:00:00]} Kb6 {[%emt 0:00:00] Weiß willigt fröhlich ins Remis ein.   Gewichteter Fehlerwert: Weiß=0.58/Schwarz=0.39.  Verlustzug:     	Weiß=1     	---        Gewinn verpasst:   	---       	Schwarz=1     Fehler:       	Weiß=1     	---        Ungenau:       	Weiß=2     	Schwarz=1     OK:         	Weiß=14    	Schwarz=11    Bester:       	Weiß=2     	Schwarz=1     Stark:        	Weiß=1     	Schwarz=1} (37... h6 $5) 1/2-1/2

[Event "Mitropa Cup Women 2024"]
[Site "Apolda"]
[Date "2024.02.18"]
[Round "4.15"]
[White "Hryzlova, Sofiia"]
[Black "Vidic, Teja"]
[Result "1-0"]
[ECO "A07"]
[WhiteElo "2196"]
[BlackElo "2132"]
[Annotator "RC"]
[PlyCount "49"]
[EventDate "2024.02.15"]
[EventType "team-tourn"]
[EventCountry "GER"]
[SourceTitle "playchess.com"]
[Source "ChessBase"]
[SourceQuality "1"]
[WhiteTeam "Switzerland"]
[BlackTeam "Slovenia"]
[WhiteTeamCountry "SUI"]
[BlackTeamCountry "SLO"]
[TimeControl "40/5400+30:1800+30"]

1. Nf3 {[%emt 0:00:02]} d5 {[%emt 0:00:11]} 2. g3 {[%emt 0:00:12]} Bg4 {[%emt 0:00:07]} 3. Bg2 {[%emt 0:00:07]} Nd7 {[%emt 0:00:19]} 4. h3 {[%emt 0:01:52]} Bh5 {[%emt 0:01:26]} 5. d4 {[%emt 0:00:13]} e6 {[%emt 0:01:09]} 6. O-O {[%emt 0:00:49]} Ngf6 {[%emt 0:00:57]} 7. c4 {[%emt 0:00:19]} c6 {[%emt 0:00:06]} 8. cxd5 {[%emt 0:01:01]} exd5 {[%emt 0:00:17]} 9. Ne5 {[%emt 0:00:09]} Be7 {[%emt 0:04:27]} 10. f4 {[%emt 0:00:25]} Qb6 {[%emt 0:22:33]} 11. Nxd7 {[%emt 0:05:33]} Kxd7 {[%emt 0:00:05]} 12. g4 {[%emt 0:01:32]} Nxg4 {[%emt 0:00:17]} 13. hxg4 {[%emt 0:00:07]} Bxg4 {[%emt 0:00:04]} 14. Qd3 {[%emt 0:02:37]} Bf6 {[%emt 0:04:11]} 15. e3 {[%emt 0:01:46]} Rae8 {[%emt 0:00:19]} 16. Nc3 {[%emt 0:01:39]} h5 {[%emt 0:01:02]} 17. Bd2 {[%emt 0:05:23]} g6 {[%emt 0:01:29]} 18. Na4 {[%emt 0:10:15]} Qc7 {[%emt 0:00:19]} 19. Rac1 {[%emt 0:01:00]} Qd6 {[%emt 0:05:41]} 20. b4 {[%emt 0:01:41]} b5 {[%emt 0:05:23]} 21. Nc5+ {[%emt 0:01:19]} Ke7 {[%emt 0:00:25]} 22. Qa3 {[%emt 0:03:03]} Ra8 {[%emt 0:00:11]} 23. Nb7 {[%emt 0:04:11]} Qe6 {[%emt 0:03:33]} 24. Qa6 {[%emt 0:02:37]} Rhc8 {[%emt 0:03:50]} 25. Na5 {[%emt 0:01:11]} 1-0

[Event "Mitropa Cup Women 2024"]
[Site "Apolda"]
[Date "2024.02.18"]
[Round "4.16"]
[White "Mihelic, Vesna"]
[Black "Manko, Mariia"]
[Result "1/2-1/2"]
[ECO "B30"]
[WhiteElo "2112"]
[BlackElo "2128"]
[Annotator "NA RC"]
[PlyCount "92"]
[EventDate "2024.02.15"]
[EventType "team-tourn"]
[EventCountry "GER"]
[SourceTitle "playchess.com"]
[Source "ChessBase"]
[SourceQuality "1"]
[WhiteTeam "Slovenia"]
[BlackTeam "Switzerland"]
[WhiteTeamCountry "SLO"]
[BlackTeamCountry "SUI"]
[TimeControl "40/5400+30:1800+30"]

1. e4 {[%emt 0:00:03]} c5 {[%emt 0:00:20]} 2. Nf3 {[%emt 0:00:08]} Nc6 {[%emt 0:00:05]} 3. Bb5 {[%emt 0:00:11]} g6 {[%emt 0:00:07]} 4. Nc3 {[%emt 0:00:13]} Bg7 {[%emt 0:00:57]} 5. d3 {[%emt 0:00:09]} e5 {[%emt 0:04:08]} 6. Bg5 {[%emt 0:00:29]} f6 {[%emt 0:08:27]} 7. Be3 {[%emt 0:01:25]} Nd4 {[%emt 0:00:55]} 8. Bc4 {[%emt 0:07:45]} Nh6 {[%emt 0:10:07]} 9. h4 {[%emt 0:14:43]} d6 {[%emt 0:08:09]} 10. Bxh6 {[%emt 0:10:14]} Bxh6 {[%emt 0:08:32]} 11. Nxd4 {[%emt 0:03:34]} cxd4 {[%emt 0:05:37]} 12. Nd5 {[%emt 0:02:31]} Be6 {[%emt 0:01:50]} 13. Qf3 {[%emt 0:13:38]} Bxd5 {[%emt 0:09:24]} 14. Bxd5 {[%emt 0:00:19]} Rc8 {[%emt 0:00:48]} 15. O-O {[%emt 0:08:39]} Rxc2 {[%emt 0:11:57]} 16. Bxb7 {[%emt 0:12:52]} Rf8 {[%emt 0:02:02]} 17. Qd1 {[%emt 0:05:59]} Rc7 {[%emt 0:03:46]} 18. Qb3 {[%emt 0:03:30]} Qd7 {[%emt 0:02:13]} 19. Bd5 {[%emt 0:00:41]} Ke7 {[%emt 0:00:18]} 20. Qd1 {[%emt 0:04:38]} f5 {[%emt 0:01:33]} 21. h5 {[%emt 0:01:11]} f4 {[%emt 0:01:29]} 22. f3 {[%emt 0:02:23]} g5 {[%emt 0:03:07]} 23. Qe2 {[%emt 0:01:42]} Rfc8 {[%emt 0:06:49]} 24. Bc4 {[%emt 0:00:16]} Qe8 {[%emt 0:03:38]} 25. Ba6 {[%emt 0:02:11]} Rc2 {[%emt 0:00:48]} 26. Qd1 {[%emt 0:00:24]} R8c7 {[%emt 0:00:49]} 27. Rf2 {[%emt 0:00:54]} Rxf2 {[%emt 0:01:14]} 28. Kxf2 {[%emt 0:00:02]} Qc6 {[%emt 0:03:45]} 29. Bc4 {[%emt 0:00:19]} Qe8 {[%emt 0:01:00]} 30. Qh1 {[%emt 0:01:36]} Qd7 {[%emt 0:00:23]} 31. Qh3 {[%emt 0:00:32]} Qxh3 {[%emt 0:00:48]} 32. gxh3 {[%emt 0:00:01]} Kf6 {[%emt 0:00:16]} 33. Rg1 {[%emt 0:01:06]} Bf8 {[%emt 0:00:38]} 34. h4 {[%emt 0:01:16]} h6 {[%emt 0:00:29]} 35. b4 {[%emt 0:01:08]} a5 {[%emt 0:00:30]} 36. a3 {[%emt 0:00:30]} axb4 {[%emt 0:00:30]} 37. axb4 {[%emt 0:00:30]} d5 {[%emt 0:00:31]} 38. exd5 {[%emt 0:00:25]} Bxb4 {[%emt 0:00:21]} 39. hxg5+ {[%emt 0:00:55]} hxg5 {[%emt 0:00:07]} 40. Rb1 {[%emt 0:00:07]} Bc5 {[%emt 0:00:59]} 41. Kg2 {[%emt 0:05:19]} Kf5 {[%emt 0:13:26]} 42. Ba6 {[%emt 0:07:24]} g4 {[%emt 0:03:27]} 43. Rb7 {[%emt 0:00:57]} Rxb7 {[%emt 0:00:51]} 44. Bxb7 {[%emt 0:00:02]} g3 {[%emt 0:00:37]} 45. d6 {[%emt 0:01:39]} Bxd6 {[%emt 0:00:09]} 46. Be4+ {[%emt 0:00:07]} Kg5 {[%emt 0:00:10]} 1/2-1/2

[Event "Mitropa Cup Women 2024"]
[Site "Apolda"]
[Date "2024.02.18"]
[Round "4.17"]
[White "Cvitan, Ena"]
[Black "Iglesias, Yosha"]
[Result "0-1"]
[ECO "D02"]
[WhiteElo "2242"]
[BlackElo "2260"]
[Annotator "TA"]
[PlyCount "60"]
[EventDate "2024.02.15"]
[EventType "team-tourn"]
[EventCountry "GER"]
[SourceTitle "playchess.com"]
[Source "ChessBase"]
[SourceQuality "1"]
[WhiteTeam "Croatia"]
[BlackTeam "France"]
[WhiteTeamCountry "CRO"]
[BlackTeamCountry "FRA"]
[TimeControl "40/5400+30:1800+30"]

{[%evp 9,60,-2,20,10,30,27,23,7,39,39,33,31,29,0,0,0,0,-183,-49,-225,-230,-239,-232,-239,-231,-233,-240,-235,-237,-256,-239,-227,-240,-250,-247,-297,-304,-327,-325,-319,-319,-427,-423,-560,-574,-571,-575,-735,-745,-740,-714,-1003,-1000]} 1. d4 {[%emt 0:00:17]} d5 {[%emt 0:00:04]} 2. Nf3 {[%emt 0:00:16]} Nf6 {[%emt 0:00:07]} 3. c3 {[%emt 0:00:10]} g6 {[%emt 0:03:25]} 4. h3 {[%emt 0:03:39]} c5 {[%emt 0:01:37]} 5. Bf4 {[%emt 0:03:06]} Qb6 {[%emt 0:10:17]} 6. Qb3 {[%emt 0:05:16]} c4 {[%emt 0:00:14]} 7. Qxb6 {[%emt 0:03:22]} axb6 {[%emt 0:00:05]} 8. Na3 {[%emt 0:00:33] Weiß hat minimalen Vorteil.} Nc6 {[%emt 0:05:40]} 9. Nb5 {[%emt 0:12:57] Droht stark Nc7+.} Ra5 {[%emt 0:00:57]} 10. a4 {[%emt 0:01:51] Und jetzt Nd2 wäre schön.} Bf5 {[%emt 0:01:31]} 11. Bc7 {[%emt 0:05:37]} (11. Ne5 {ist vielschichtiger.} Bg7 12. g4 Be4 13. f3) 11... Bc2 {[%emt 0:01:21]} 12. Bxb6 {[%emt 0:13:05][%cal Of3e5] Schwarz muss nun Ne5! beachten.} Rxa4 {[%emt 0:00:09]} 13. Rc1 {[%emt 0:04:33] [#]} (13. Nc7+ $11 {und Weiss ist OK.} Kd7 14. Rxa4 Bxa4 15. Ng5) 13... Bf5 {[%emt 0:00:49]} (13... Ra2 $1 $19 {[%cal Ra2b2]} 14. Nc7+ (14. Rxc2 $2 {geht unter.} Ra1+ 15. Kd2 Ne4+ 16. Ke3 Bh6+ $19) 14... Kd7 15. Ne5+ (15. Rxc2 $2 Ra1+ $19) 15... Nxe5 16. dxe5 Rxb2 17. exf6 e6 (17... Rxb6 18. fxe7 Bh6 19. e3 $17)) 14. Nd2 $2 {[%emt 0:05:26] Ein Fehler, der zur Niederlage führt.} ({Besser ist} 14. Nc7+ $15 Kd7 15. Ne5+ Nxe5 16. dxe5) 14... Ra2 $19 {[%emt 0:04:55]} 15. b3 {[%emt 0:06:20]} cxb3 {[%emt 0:16:14]} 16. Nxb3 {[%emt 0:00:26] [#]} Rb2 $1 {[%emt 0:00:29]} 17. Nc7+ {[%emt 0:02:22]} Kd7 {[%emt 0:14:44]} 18. Nc5+ {[%emt 0:02:29]} Kc8 {[%emt 0:00:10]} 19. Na4 {[%emt 0:01:37] [#]} Rxb6 {[%emt 0:03:01][%mdl 512]} 20. Nxb6+ {[%emt 0:00:07]} Kxc7 {[%emt 0:00:04]} 21. Na8+ {[%emt 0:02:18]} Kb8 {[%emt 0:00:58]} 22. Nb6 {[%emt 0:00:40]} e5 {[%emt 0:01:12]} 23. g4 {[%emt 0:03:15]} Be6 {[%emt 0:01:19]} 24. e3 {[%emt 0:03:30]} exd4 {[%emt 0:01:16]} 25. cxd4 {[%emt 0:01:17]} Bb4+ {[%emt 0:00:40] Schwarz steht klar auf Gewinn.} 26. Ke2 {[%emt 0:00:13]} Kc7 {[%emt 0:00:22]} 27. Na4 {[%emt 0:00:48]} Ra8 {[%emt 0:01:09]} 28. Nc5 {[%emt 0:00:05]} Ra2+ {[%emt 0:02:52]} 29. Kf3 {[%emt 0:00:09]} Bxc5 {[%emt 0:00:16]} 30. dxc5 {[%emt 0:00:44]} Ne4 {[%emt 0:00:58] Gewichteter Fehlerwert: Weiß=0.67/Schwarz=0.12 (sehr präzise) .  Verlustzug:     	Weiß=2     	---        Fehler:       	---       	Schwarz=1     Ungenau:       	Weiß=3     	Schwarz=1     OK:         	Weiß=10    	Schwarz=10    Bester:       	Weiß=2     	Schwarz=7     Stark:        	---       	Schwarz=1} 0-1

[Event "Mitropa Cup Women 2024"]
[Site "Apolda"]
[Date "2024.02.18"]
[Round "4.18"]
[White "Schippke, Manon"]
[Black "Medic, Mirjana"]
[Result "1-0"]
[ECO "C11"]
[WhiteElo "2162"]
[BlackElo "2151"]
[Annotator "RC"]
[PlyCount "99"]
[EventDate "2024.02.15"]
[EventType "team-tourn"]
[EventCountry "GER"]
[SourceTitle "playchess.com"]
[Source "ChessBase"]
[SourceQuality "1"]
[WhiteTeam "France"]
[BlackTeam "Croatia"]
[WhiteTeamCountry "FRA"]
[BlackTeamCountry "CRO"]
[TimeControl "40/5400+30:1800+30"]

1. e4 {[%emt 0:00:03]} e6 {[%emt 0:00:05]} 2. d4 {[%emt 0:00:16]} d5 {[%emt 0:00:07]} 3. Nc3 {[%emt 0:00:09]} Nf6 {[%emt 0:00:21]} 4. e5 {[%emt 0:00:25]} Nfd7 {[%emt 0:00:07]} 5. Nce2 {[%emt 0:00:11]} c5 {[%emt 0:00:23]} 6. c3 {[%emt 0:00:12]} Nc6 {[%emt 0:00:57]} 7. Nf3 {[%emt 0:00:12]} cxd4 {[%emt 0:03:26]} 8. cxd4 {[%emt 0:00:04]} f6 {[%emt 0:02:42]} 9. Nf4 {[%emt 0:00:19]} Bb4+ {[%emt 0:12:26]} 10. Bd2 {[%emt 0:00:06]} Bxd2+ {[%emt 0:00:19]} 11. Qxd2 {[%emt 0:00:05]} Qe7 {[%emt 0:01:37]} 12. exf6 {[%emt 0:00:05]} Nxf6 {[%emt 0:00:09]} 13. Bb5 {[%emt 0:00:06]} O-O {[%emt 0:01:47]} 14. O-O {[%emt 0:12:39]} Ne4 {[%emt 0:06:27]} 15. Qe3 {[%emt 0:00:08]} Qf6 {[%emt 0:01:32]} 16. Nd3 {[%emt 0:04:14]} Bd7 {[%emt 0:08:46]} 17. a4 {[%emt 0:08:53]} Rfc8 {[%emt 0:13:08]} 18. Rfe1 {[%emt 0:04:19]} Rc7 {[%emt 0:03:22]} 19. Bxc6 {[%emt 0:05:09]} Bxc6 {[%emt 0:02:14]} 20. Nfe5 {[%emt 0:02:54]} Re8 {[%emt 0:14:22]} 21. Rac1 {[%emt 0:07:35]} Ree7 {[%emt 0:07:31]} 22. Nxc6 {[%emt 0:12:56]} Rxc6 {[%emt 0:00:07]} 23. Rxc6 {[%emt 0:00:03]} bxc6 {[%emt 0:00:07]} 24. Rc1 {[%emt 0:00:12]} Rc7 {[%emt 0:02:44]} 25. b4 {[%emt 0:00:26]} Qe7 {[%emt 0:02:37]} 26. f3 {[%emt 0:02:12]} Nd6 {[%emt 0:00:27]} 27. Nc5 {[%emt 0:08:38]} Nc4 {[%emt 0:00:39]} 28. Qxe6+ {[%emt 0:03:50]} Qxe6 {[%emt 0:00:02]} 29. Nxe6 {[%emt 0:00:05]} Rb7 {[%emt 0:00:15]} 30. Rb1 {[%emt 0:00:48]} Nd2 {[%emt 0:02:14]} 31. Nc5 {[%emt 0:02:12]} Rb8 {[%emt 0:01:08]} 32. Rd1 {[%emt 0:00:28]} Nc4 {[%emt 0:00:14]} 33. Nd3 {[%emt 0:00:56]} Kf7 {[%emt 0:01:31]} 34. Re1 {[%emt 0:03:04]} Kf6 {[%emt 0:00:56]} 35. Kf2 {[%emt 0:00:49]} Rb7 {[%emt 0:06:56]} 36. g4 {[%emt 0:07:33]} g5 {[%emt 0:00:46]} 37. Re8 {[%emt 0:01:13]} Nd6 {[%emt 0:01:07]} 38. Rf8+ {[%emt 0:01:11]} Ke7 {[%emt 0:00:41]} 39. Rh8 {[%emt 0:01:59]} Kf6 {[%emt 0:00:24]} 40. Kg3 {[%emt 0:02:32]} Re7 {[%emt 0:04:15]} 41. Ne5 {[%emt 0:35:24]} Ne8 {[%emt 0:04:14]} 42. Rf8+ {[%emt 0:00:00]} Kg7 {[%emt 0:01:47]} 43. Rf5 {[%emt 0:00:00]} h6 {[%emt 0:00:24]} 44. Nxc6 {[%emt 0:00:00]} Rc7 {[%emt 0:00:15]} 45. b5 {[%emt 0:00:00]} Nf6 {[%emt 0:00:05]} 46. Re5 {[%emt 0:00:00]} Kf7 {[%emt 0:00:23]} 47. h4 {[%emt 0:00:00]} gxh4+ {[%emt 0:00:35]} 48. Kxh4 {[%emt 0:00:00]} a6 {[%emt 0:00:27]} 49. Nd8+ {[%emt 0:00:00]} Kg6 {[%emt 0:00:42]} 50. b6 {[%emt 0:00:00]} 1-0